fUST/lending_fUST_20250111
["ID","MTS","AMOUNT","RATE_DAILY","PERIOD"]
[348499131,1736589032951,-588.23461914,0.00019199,2]
[348499132,1736589032961,-500.0,0.00019199,2]
[348499133,1736589032970,-620.0,0.00019199,2]
[348499134,1736589032980,-249.75507357,0.000192,2]
[348499135,1736589032990,-629.52889265,0.000192,2]
[348499136,1736589032999,-565.46774291,0.000192,2]
[348499137,1736589033008,-157.9,0.000192,2]
[348499139,1736589033018,-167.5,0.000192,2]
[348499141,1736589033027,-500.0,0.000192,2]
[348499143,1736589033037,-230.058,0.00019382,2]
[348499144,1736589033047,-457.2883936,0.00019507,2]
[348499146,1736589033057,-1000.0,0.00019748,2]
[348499147,1736589033067,-152.0,0.0001989,2]
[348499149,1736589033076,-500.0,0.00020175,2]
[348499151,1736589033086,-178.0,0.000202,2]
[348499152,1736589033096,-346.885,0.0002033,2]
[348499154,1736589033105,-420.0,0.00020456,2]
[348499156,1736589033115,-1500.0,0.0002075,2]
[348499157,1736589033125,-151.34303062,0.00020777,2]
[348499158,1736589033134,-171.12541873,0.0002111,2]
[348499159,1736589033144,-500.0,0.00021184,2]
[348499160,1736589033154,-2105.0817678,0.00021185,2]
[348499161,1736589033164,-160.0,0.00021247,5]
[348499162,1736589033174,-2011.73529528,0.000213,2]
[348499163,1736589033183,-500.0,0.00021373,2]
[348499165,1736589033193,-152.0,0.00021373,2]
[348499167,1736589033202,-2959.67961306,0.0002139,5]
[348499169,1736589033212,-184.55936301,0.00021398,2]
[348499171,1736589033221,-188.04971298,0.00021399,2]
[348499173,1736589033231,-30904.52772238,0.000214,5]
[348499175,1736589033241,-7406.64572858,0.000214,5]
[348499177,1736589033251,-8443.16542768,0.000214,5]
[348499180,1736589033272,-1949.25268052,0.000214,5]
[348499216,1736589038638,-3419.72747579,0.000214,5]
[348499416,1736589040744,-167.5,0.000192,2]
[348499417,1736589040755,-160.0,0.000192,2]
[348499418,1736589040764,-176.09595001,0.000214,5]
[348499419,1736589040776,-456.4656617,0.000214,5]
[348499420,1736589040787,-1383.7091502,0.000214,5]
[348499421,1736589040799,-1224.32737229,0.000214,5]
[348499422,1736589040813,-1215.325587,0.000214,5]
[348499423,1736589040824,-1279.45430025,0.000214,5]
[348499610,1736589043771,-554975.73647218,0.000214,5]
[348500365,1736590232887,-837.3358674,0.00018874,2]
[348500366,1736590233094,-330.9809,0.00018874,2]
[348500407,1736590238758,-1554.8581272,0.00018874,2]
[348500409,1736590238768,-300.0,0.00019099,2]
[348500411,1736590238777,-10105.03115171,0.000191,2]
[348500414,1736590238791,-24051.87499249,0.000191,2]
[348500416,1736590238800,-171.12541873,0.000192,2]
[348500418,1736590238810,-611.99973356,0.000193,2]
[348500420,1736590238819,-184.046,0.00019375,2]
[348500423,1736590238829,-500.0,0.00019521,2]
[348500425,1736590238838,-176.47051324,0.00019521,2]
[348500427,1736590238847,-180.0,0.00019521,2]
[348500429,1736590238856,-389.65324088,0.00019521,2]
[348500432,1736590238865,-24900.0,0.00019522,2]
[348500436,1736590238875,-266.956666,0.00019603,2]
[348500440,1736590238884,-166.518886,0.00019659,2]
[348500443,1736590238894,-713.0927758,0.00019805,2]
[348500446,1736590238903,-996.0,0.0002,2]
[348500449,1736590238912,-332.983,0.0002033,2]
[348500452,1736590238922,-420.0,0.00020816,2]
[348500455,1736590238931,-1052.5408839,0.00021185,2]
[348500457,1736590238940,-1810.56176568,0.000213,2]
[348500459,1736590238950,-415.22187898,0.000213,2]
[348500461,1736590238959,-160.0,0.00021373,2]
[348500463,1736590238968,-184.55936302,0.00021398,2]
[348500465,1736590238978,-15452.26386119,0.000214,5]
[348500467,1736590238988,-3703.32286429,0.000214,5]
[348500469,1736590238997,-57169.26331901,0.000214,5]
[348500898,1736590243736,-47348.16185391,0.000214,5]
[348500915,1736590243906,-264.34188844,0.000214,5]
[348501384,1736590323405,-160.0,0.00023,120]
[348501385,1736590323445,-160.0,0.0002361,120]
[348501386,1736590323494,-164.223392,0.0002411,120]
[348501394,1736590931060,262.793494,0.00013973,2]
[348501395,1736590978029,164.223392,0.0002411,120]
[348501477,1736591432241,-1879.08799826,0.000192,2]
[348501480,1736591432254,-814.8999571,0.000192,2]
[348501482,1736591432265,-254.52171257,0.000192,2]
[348501578,1736591437883,-586.48494287,0.000192,2]
[348501580,1736591437897,-116.05231785,0.000192,2]
[348501582,1736591437907,-250.0,0.00019804,2]
[348501584,1736591437917,-109.61768215,0.0001987,2]
[348501587,1736591437928,-221.36321785,0.0001987,2]
[348501589,1736591437938,-164.400195,0.0002012,2]
[348501591,1736591437947,-300.0,0.00020245,2]
[348501593,1736591437957,-114.09693955,0.00020246,2]
[348501594,1736591437969,-1078.107955,0.00020246,2]
[348501595,1736591437986,-6351.28166407,0.00020246,2]
[348501597,1736591437997,-5239.16702888,0.00020246,2]
[348501599,1736591438008,-5032.70606032,0.00020246,2]
[348501601,1736591438019,-7084.64035218,0.00020246,2]
[348501603,1736591438029,-178.43465741,0.0002029,2]
[348501605,1736591438038,-338.666,0.0002033,2]
[348501607,1736591438047,-178.43465735,0.00020753,2]
[348501609,1736591438056,-371.46306061,0.00021185,2]
[348501611,1736591438065,-526.2704419,0.00021185,2]
[348501613,1736591438075,-215.776,0.00021185,2]
[348501615,1736591438084,-178.43465735,0.00021216,2]
[348501617,1736591438094,-1152.18436245,0.000213,2]
[348501622,1736591438105,-496.88880591,0.000213,2]
[348501624,1736591438115,-151.0,0.00021373,2]
[348501626,1736591438124,-427.11119409,0.00021373,2]
[348501653,1736591440318,-72.88880591,0.00021373,2]
[348501655,1736591440328,-500.0,0.00021373,2]
[348501657,1736591440338,-217.37514992,0.00021373,2]
[348501659,1736591440347,-160.0,0.00021373,2]
[348501661,1736591440356,-500.0,0.00021373,2]
[348501662,1736591440365,-258.9936,0.00021373,2]
[348501663,1736591440375,-151.0,0.00021373,2]
[348501665,1736591440384,-502.13885564,0.00021373,2]
[348501667,1736591440393,-167.5,0.00021373,2]
[348501669,1736591440402,-266.0279362,0.00021373,2]
[348501671,1736591440411,-184.55936301,0.00021398,2]
[348501673,1736591440420,-393.31792965,0.00021399,2]
[348501675,1736591440429,-215.31188285,0.00021399,2]
[348501677,1736591440439,-153.49591985,0.00021399,2]
[348501679,1736591440448,-174.33523542,0.00021399,7]
[348501692,1736591440564,-325.66476458,0.00021399,7]
[348501694,1736591440573,-1986.51236937,0.000214,5]
[348501747,1736591443313,-8383.06560901,0.000214,5]
[348501751,1736591443324,-1396.9412411,0.000214,5]
[348502385,1736592000344,258.631486,0.00013973,2]
[348502475,1736592632327,-457.99982238,0.000189,2]
[348502477,1736592632336,-250.0,0.0001892,2]
[348502479,1736592632346,-463.738162,0.0001934,2]
[348502481,1736592632359,-257.711,0.00019377,2]
[348502483,1736592632369,-500.0,0.00020246,7]
[348502485,1736592632378,-324.632,0.0002033,2]
[348502488,1736592632388,-22887.0,0.00020391,2]
[348502490,1736592632397,-300.0,0.00020391,2]
[348502492,1736592632407,-154.58,0.00020392,2]
[348502494,1736592632416,-5184.78898919,0.00020393,5]
[348502496,1736592632425,-1673.21120061,0.00020393,5]
[348502498,1736592632435,-24900.0,0.00020393,2]
[348502500,1736592632444,-263.135221,0.00021185,2]
[348502502,1736592632453,-1484.16585156,0.000213,2]
[348502504,1736592632463,-269.0,0.00021373,2]
[348502506,1736592632472,-180.0,0.00021373,2]
[348502508,1736592632482,-237.51757139,0.00021373,2]
[348502510,1736592632491,-266.51692999,0.00021373,2]
[348502512,1736592632500,-155.0,0.00021373,2]
[348502514,1736592632509,-247.9,0.00021373,2]
[348502516,1736592632519,-160.0,0.00021373,2]
[348502518,1736592632528,-500.0,0.00021373,2]
[348502520,1736592632538,-155.0,0.00021373,2]
[348502522,1736592632547,-151.5,0.00021373,2]
[348502524,1736592632556,-160.0,0.00021373,2]
[348502526,1736592632565,-157.32,0.00021373,2]
[348502528,1736592632575,-151.0,0.00021373,2]
[348502530,1736592632584,-161.996,0.00021373,2]
[348502532,1736592632594,-151.0,0.00021373,2]
[348502534,1736592632603,-157.996,0.00021373,2]
[348502548,1736592632722,-151.0,0.00021373,2]
[348502550,1736592632732,-151.0,0.00021373,2]
[348502552,1736592632741,-157.5,0.00021373,2]
[348502554,1736592632750,-165.66,0.00021373,2]
[348502556,1736592632760,-160.01685687,0.00021373,2]
[348502558,1736592632769,-122336.60746155,0.000214,5]
[348502560,1736592632781,-3352.64317454,0.000214,5]
[348502563,1736592632796,-71952.34463868,0.000214,5]
[348502564,1736592632807,-17482.97566324,0.000214,5]
[348502881,1736592640296,-583.13285732,0.00021373,2]
[348502882,1736592640306,-160.74549396,0.00021373,2]
[348502883,1736592640316,-502.6237619,0.00021373,2]
[348502884,1736592640325,-266.5,0.00021373,2]
[348502885,1736592640335,-504.3317695,0.00021373,2]
[348502886,1736592640344,-9306.34611732,0.000214,5]
[348502888,1736592640360,-1003.4065976,0.000214,5]
[348503163,1736592643344,-51252.64769838,0.000214,5]
[348503197,1736592646096,-160.0,0.00021373,2]
[348503198,1736592646106,-264.5,0.00021373,2]
[348503199,1736592646116,-535.83125063,0.000214,5]
[348503205,1736592646204,-8129.64,0.000214,5]
[348503206,1736592646215,-14082.65297666,0.000214,5]
[348503211,1736592946396,304.107838,0.00013973,2]
[348503215,1736593385544,421.12689393,0.00025,120]
[348503262,1736593832700,-5000.0,0.00016862,2]
[348503264,1736593832710,-477.26410521,0.00017032,2]
[348503266,1736593832719,-300.0,0.00017524,2]
[348503269,1736593832729,-24900.0,0.00017525,2]
[348503271,1736593832740,-2228.959232,0.00017732,2]
[348503273,1736593832750,-15277.7320023,0.00017909,2]
[348503274,1736593832759,-500.0,0.00018434,2]
[348503277,1736593832769,-430.21638171,0.00018434,2]
[348503279,1736593832779,-500.0,0.00018434,2]
[348503281,1736593832788,-500.0,0.00018434,2]
[348503283,1736593832797,-557.51276037,0.00018434,2]
[348503285,1736593832807,-500.0,0.00018434,2]
[348503287,1736593832816,-500.0,0.00018434,2]
[348503290,1736593832826,-500.0,0.00018434,2]
[348503293,1736593832836,-500.0,0.00018434,2]
[348503296,1736593832845,-500.0,0.00018434,2]
[348503298,1736593832854,-530.99110923,0.00018434,2]
[348503300,1736593832863,-500.0,0.00018434,2]
[348503302,1736593832873,-571.82497251,0.00018434,2]
[348503304,1736593832882,-500.0,0.00018435,2]
[348503305,1736593832891,-500.0,0.00018435,2]
[348503307,1736593832901,-362.82584398,0.00018435,2]
[348503310,1736593832910,-274.47647889,0.00018899,2]
[348503311,1736593832919,-185.15130834,0.00018999,2]
[348503314,1736593832929,-173.3022285,0.00018999,2]
[348503315,1736593832938,-500.0,0.00018999,2]
[348503318,1736593832948,-451.42485425,0.00018999,2]
[348503320,1736593832957,-500.0,0.00018999,2]
[348503322,1736593832966,-500.0,0.00018999,2]
[348503324,1736593832975,-500.0,0.00018999,2]
[348503326,1736593832985,-500.0,0.00018999,2]
[348503328,1736593832995,-500.0,0.00018999,2]
[348503330,1736593833004,-500.0,0.00018999,2]
[348503331,1736593833012,-500.0,0.00018999,2]
[348503333,1736593833022,-500.0,0.00018999,2]
[348503335,1736593833031,-390.75556949,0.00018999,2]
[348503337,1736593833040,-1737.56315322,0.00019,8]
[348503340,1736593833054,-1891.84482146,0.00019,8]
[348503343,1736593833077,-10200.59280703,0.00019,8]
[348503346,1736593833089,-2852.30843632,0.00019,8]
[348503464,1736593838588,-15610.41413642,0.00019,8]
[348503743,1736593841241,-1459.69943385,0.00019,8]
[348503940,1736593843390,-628.7700021,0.00019,8]
[348503944,1736593843538,-8772.91442944,0.00019,8]
[348503946,1736593843549,-1779.17,0.00019,8]
[348503951,1736593843583,-9499.97761313,0.00019,8]
[348504070,1736593846507,-68770.69745077,0.00019,8]
[348504071,1736593846517,-2984.0,0.00019,2]
[348504072,1736593846526,-433.38383566,0.00019178,7]
[348504073,1736593846536,-250.034,0.00019381,2]
[348504074,1736593846546,-274.47647887,0.00019562,2]
[348504075,1736593846556,-200.7293893,0.000199,2]
[348504076,1736593846565,-1008.0,0.0002,2]
[348504077,1736593846574,-200.72938925,0.00020111,2]
[348504078,1736593846583,-274.47647887,0.00020226,2]
[348504079,1736593846593,-200.72938925,0.00020321,2]
[348504080,1736593846602,-310.993,0.0002033,2]
[348504081,1736593846612,-304.107838,0.00020447,2]
[348504082,1736593846621,-200.72938925,0.00020532,2]
[348504083,1736593846631,-200.72938925,0.00020742,2]
[348504084,1736593846641,-274.47647887,0.00020889,2]
[348504085,1736593846650,-200.72938925,0.00020953,2]
[348504086,1736593846660,-1060.61811779,0.00020986,2]
[348504087,1736593846669,-1060.61811779,0.00020991,2]
[348504088,1736593846680,-1060.61811779,0.00020996,2]
[348504089,1736593846689,-200.72938925,0.00021163,2]
[348504090,1736593846699,-263.135221,0.00021185,2]
[348504091,1736593846710,-151.0,0.000212,3]
[348504092,1736593846719,-1335.74926644,0.000213,2]
[348504093,1736593846728,-200.72938925,0.00021374,2]
[348504094,1736593846738,-2592.39449459,0.000214,5]
[348504095,1736593846748,-1204.43345685,0.000214,5]
[348504096,1736593846757,-260471.71633032,0.000214,5]
[348504099,1736593969710,273.697054,0.00013973,2]
[348504862,1736594906680,181.08192224,0.00025,120]
[348504863,1736594906850,304.76709075,7e-05,120]
[348504864,1736594920293,984.5494024,0.0002202,120]
[348504865,1736594953768,260.012201,0.00013973,2]
[348504954,1736595033023,-5000.0,0.0001584,2]
[348504956,1736595033034,-7282.44908798,0.00016,2]
[348504958,1736595033043,-150.24859828,0.00016486,2]
[348504960,1736595033054,-13570.02459402,0.00018709,2]
[348504963,1736595033066,-778.97540598,0.00018709,2]
[348504965,1736595033076,-295.32459402,0.000189,2]
[348505508,1736595038521,-238.3170888,0.000189,2]
[348505509,1736595038530,-6652.56085769,0.00020037,2]
[348505510,1736595038552,-7401.86571,0.00020037,2]
[348505511,1736595038582,-444.54206958,0.00020037,2]
[348505646,1736595046649,-4940.44240033,0.00020037,2]
[348505653,1736595585416,1586.8736188,0.00025,120]
[348505658,1736595929556,260.311353,0.00013973,2]
[348505683,1736596233031,-1345.861321,0.00017995,2]
[348505684,1736596233041,-777.8837177,0.00018044,2]
[348505685,1736596233053,-204.8408743,0.0001878,2]
[348505686,1736596233063,-2064.31699584,0.000188,2]
[348505687,1736596233074,-300.0,0.00018992,2]
[348505688,1736596233083,-17085.0,0.00018993,2]
[348505689,1736596233092,-24900.0,0.00018994,2]
[348505690,1736596233102,-302.72757545,0.00019,2]
[348505691,1736596233112,-302.72757545,0.0001919,2]
[348505692,1736596233121,-302.72757545,0.0001938,2]
[348505693,1736596233131,-152.0,0.00019536,2]
[348505694,1736596233140,-302.72757545,0.0001957,2]
[348505695,1736596233150,-241.18609153,0.0001976,2]
[348505696,1736596233160,-200.72938925,0.000199,2]
[348505697,1736596233169,-176.71377593,0.00019909,2]
[348505698,1736596233180,-151.0,0.00019977,2]
[348505700,1736596233190,-154.84,0.00019986,2]
[348505702,1736596233199,-235.119,0.00019987,2]
[348505703,1736596233208,-1296.1972473,0.00019989,5]
[348505705,1736596233217,-602.21672843,0.00019989,5]
[348505707,1736596233227,-41428.170237,0.00019989,2]
[348505709,1736596233237,-500.0,0.00020034,7]
[348505711,1736596233246,-500.0,0.00020037,2]
[348505713,1736596233260,-500.0,0.00020037,2]
[348505715,1736596233269,-418.78320464,0.00020037,2]
[348505717,1736596233278,-500.0,0.00020037,2]
[348505719,1736596233287,-404.31390698,0.00020037,2]
[348505721,1736596233297,-200.72938925,0.00020264,2]
[348505723,1736596233307,-322.168,0.0002033,2]
[348505725,1736596233316,-260.311353,0.00020447,2]
[348505727,1736596233326,-297.21825424,0.00020525,2]
[348505729,1736596233335,-200.72938925,0.00020627,2]
[348505731,1736596233345,-420.0,0.00020701,2]
[348505733,1736596233354,-173.91383064,0.00020719,9]
[348505735,1736596233363,-200.72938925,0.00020991,2]
[348505738,1736596233383,-10037.89484815,0.00021,2]
[348505740,1736596233394,-1202.17433976,0.000213,2]
[348505760,1736596233572,-200.72938925,0.00021355,2]
[348505762,1736596233582,-268.62842466,0.00021373,2]
[348505764,1736596233592,-503.58767421,0.00021373,2]
[348505766,1736596233602,-500.0,0.00021373,2]
[348505768,1736596233612,-500.55535483,0.0002139,7]
[348505770,1736596233621,-167.0,0.00021399,2]
[348505772,1736596233631,-167.44,0.00021399,2]
[348505774,1736596233641,-188.0,0.00021399,2]
[348505776,1736596233650,-188.0,0.00021399,2]
[348505778,1736596233659,-188.0,0.00021399,2]
[348505780,1736596233669,-190.88,0.00021399,2]
[348505782,1736596233679,-500.0,0.00021399,2]
[348505784,1736596233689,-651.28929209,0.00021399,2]
[348505786,1736596233699,-500.0,0.00021399,2]
[348505788,1736596233708,-500.0,0.00021399,2]
[348505790,1736596233718,-500.0,0.00021399,2]
[348505792,1736596233727,-500.0,0.00021399,2]
[348505794,1736596233737,-500.0,0.00021399,2]
[348505796,1736596233747,-500.0,0.00021399,2]
[348505798,1736596233756,-392919.85279838,0.000214,5]
[348505816,1736596233911,-500.0,0.00019899,2]
[348505818,1736596233921,-261.27437681,0.00019899,2]
[348505820,1736596233930,-500.0,0.00019899,2]
[348505822,1736596233940,-36177.5832196,0.000214,5]
[348505824,1736596233952,-25430.11049909,0.000214,5]
[348506344,1736596239053,-428.08,0.00019899,2]
[348506351,1736596239104,-71.92,0.00019899,2]
[348506353,1736596239114,-500.0,0.00019899,2]
[348506355,1736596239123,-418.12398308,0.00019899,2]
[348506357,1736596239132,-363.20156658,0.00019899,2]
[348506359,1736596239142,-102812.40090548,0.000214,5]
[348506439,1736596240872,-3907.98890486,0.000214,5]
[348506440,1736596240926,-4910.92031945,0.000214,5]
[348506441,1736596240938,-1546.78600054,0.000214,5]
[348507032,1736596246793,-500.0,0.00021373,2]
[348507035,1736596246803,-124.7826615,0.000214,5]
[348507041,1736596246860,-12512.800544,0.000214,5]
[348510892,1736596350049,10000.0,0.00025,120]
[348510893,1736596564114,633.13702756,0.00015,2]
[348510894,1736596564152,13266.86297244,0.00015,2]
[348510895,1736596868680,247.250004,0.00013973,2]
[348510947,1736597432074,-483.22822672,0.00017795,2]
[348510950,1736597432084,-341.0,0.00017894,2]
[348510952,1736597432094,-513.22798718,0.00017895,2]
[348510953,1736597432103,-5277.8109215,0.00017895,2]
[348510956,1736597432113,-884.209671,0.00018363,2]
[348510958,1736597432123,-241.7006906,0.00018935,2]
[348510960,1736597432132,-211.99091648,0.0001898,2]
[348510962,1736597432144,-716.30635921,0.0001898,2]
[348510964,1736597432153,-24900.0,0.00019024,2]
[348510966,1736597432164,-225.7732733,0.00019125,2]
[348510968,1736597432174,-201.808815,0.00019136,2]
[348510970,1736597432183,-276.1368046,0.00019223,2]
[348510972,1736597432193,-840.82952934,0.00019223,2]
[348510974,1736597432202,-500.0,0.00019643,2]
[348510976,1736597432212,-188.095,0.00019643,2]
[348510978,1736597432221,-152.0,0.00019806,2]
[348510980,1736597432231,-864.0,0.0002,2]
[348510982,1736597432240,-17122.59539143,0.0002,4]
[348510984,1736597432249,-332.632,0.0002033,2]
[348510986,1736597432259,-247.250004,0.00020447,2]
[348510988,1736597432268,-394.0,0.00020891,2]
[348510990,1736597432278,-10651.72567472,0.00021107,2]
[348510992,1736597432288,-152.9495554,0.00021185,2]
[348510994,1736597432297,-302.0,0.00021282,2]
[348510996,1736597432306,-1219.66073973,0.000213,2]
[348510998,1736597432316,-353.42755184,0.000213,2]
[348511000,1736597432326,-726.99296395,0.00021313,2]
[348511003,1736597432336,-500.0,0.00021373,2]
[348511005,1736597432345,-500.0,0.00021373,2]
[348511008,1736597432354,-500.0,0.00021373,2]
[348511011,1736597432363,-160.16371668,0.00021373,2]
[348511013,1736597432372,-573.30006317,0.00021373,2]
[348511016,1736597432382,-351.71324859,0.00021373,2]
[348511018,1736597432390,-500.0,0.00021373,2]
[348511021,1736597432400,-162.0655206,0.00021373,2]
[348511023,1736597432409,-500.0,0.00021373,2]
[348511042,1736597432531,-500.0,0.00021373,2]
[348511045,1736597432541,-500.0,0.00021373,2]
[348511049,1736597432555,-500.0,0.00021373,2]
[348511052,1736597432564,-202.06176424,0.00021373,2]
[348511055,1736597432574,-154.69782577,0.00021398,2]
[348511058,1736597432583,-182.03431967,0.00021399,2]
[348511061,1736597432592,-648.09862365,0.000214,5]
[348511064,1736597432601,-301.10836421,0.000214,5]
[348511067,1736597432610,-88249.57946006,0.000214,5]
[348511071,1736597432622,-4802.94322302,0.000214,5]
[348511079,1736597432675,-500.0,0.00019998,2]
[348511080,1736597432684,-500.0,0.00019998,2]
[348511081,1736597432696,-500.0,0.00019998,2]
[348511082,1736597432706,-336499.96145101,0.000214,5]
[348511083,1736597432720,-474.435,0.000214,5]
[348511084,1736597432762,-500.0,0.00019998,2]
[348511085,1736597432771,-82.74281327,0.00019998,2]
[348511086,1736597432783,-417.25718673,0.00019998,2]
[348511087,1736597432792,-500.0,0.00019998,2]
[348511088,1736597432801,-500.0,0.00019998,2]
[348511089,1736597432811,-500.0,0.00019998,2]
[348511090,1736597432820,-500.0,0.00019998,2]
[348511091,1736597432833,-1289.31172241,0.000214,5]
[348511092,1736597432844,-473.35,0.000214,5]
[348511093,1736597432885,-400.0,0.00019998,2]
[348511094,1736597432894,-500.0,0.00019998,2]
[348511095,1736597432903,-500.0,0.00019998,2]
[348511097,1736597432912,-500.0,0.00019998,2]
[348511098,1736597432921,-500.0,0.00019998,2]
[348511100,1736597432930,-9670.12787991,0.000214,5]
[348511614,1736597440022,-500.0,0.00019998,2]
[348511617,1736597440032,-500.0,0.00019998,2]
[348511619,1736597440042,-500.0,0.00019998,2]
[348511621,1736597440051,-500.0,0.00019998,2]
[348511623,1736597440061,-500.0,0.00019998,2]
[348511625,1736597440070,-500.0,0.00019998,2]
[348511627,1736597440079,-500.0,0.00019998,2]
[348511629,1736597440088,-500.0,0.00019998,2]
[348511631,1736597440097,-500.0,0.00019998,2]
[348511643,1736597440210,-500.0,0.00019998,2]
[348511646,1736597440221,-500.0,0.00019998,2]
[348511648,1736597440230,-500.0,0.00019998,2]
[348511650,1736597440240,-500.0,0.00019998,2]
[348511652,1736597440249,-500.0,0.00019998,2]
[348511654,1736597440259,-280.72616716,0.00019998,2]
[348511656,1736597440269,-500.0,0.00019998,2]
[348511658,1736597440278,-191.85229606,0.00019998,2]
[348511661,1736597440298,-308.14770394,0.00019998,2]
[348511663,1736597440307,-500.0,0.00019998,2]
[348511665,1736597440317,-500.0,0.00019998,2]
[348511667,1736597440326,-500.0,0.00019998,2]
[348511669,1736597440335,-66.53054189,0.00019998,2]
[348512236,1736597445949,-433.46945811,0.00019998,2]
[348512238,1736597445960,-500.0,0.00019998,2]
[348512240,1736597445969,-74.76542408,0.00019998,2]
[348514242,1736597598326,3001.0,0.00025,120]
[348514244,1736597744030,234.19781,0.00013973,2]
[348514245,1736597771317,1005.38,0.00015052,2]
[348514246,1736597968145,-150.0,0.000193,2]
[348514265,1736598569984,222.487919,0.00013973,2]
[348514325,1736598632222,-595.538419,0.0001909,2]
[348514327,1736598632232,-185.43329444,0.00019904,2]
[348514329,1736598632241,-757.30729273,0.0002,2]
[348514340,1736598632334,-13112.24211231,0.0002,2]
[348514342,1736598632346,-22273.15088259,0.0002,2]
[348514345,1736598632357,-38124.29971237,0.0002,2]
[348514347,1736598632366,-300.0,0.00020001,2]
[348514349,1736598632375,-192.21667371,0.00020011,2]
[348514351,1736598632384,-188.58116669,0.00020011,2]
[348514353,1736598632393,-500.0,0.00020011,2]
[348514355,1736598632403,-533.32652823,0.00020011,2]
[348514357,1736598632412,-500.0,0.00020011,2]
[348514359,1736598632421,-500.0,0.00020011,2]
[348514360,1736598632431,-500.0,0.00020011,2]
[348514361,1736598632440,-500.0,0.00020011,2]
[348514362,1736598632449,-861.575919,0.00020012,2]
[348514674,1736598638189,-500.0,0.00019999,2]
[348514675,1736598638198,-344.19082374,0.00019999,2]
[348514676,1736598638211,-155.80917626,0.00019999,2]
[348514677,1736598638223,-500.0,0.00019999,2]
[348514678,1736598638232,-165.21065165,0.00019999,2]
[348514679,1736598638241,-500.0,0.00019999,2]
[348514680,1736598638250,-500.0,0.00019999,2]
[348514681,1736598638259,-500.0,0.00019999,2]
[348514682,1736598638269,-500.0,0.00019999,2]
[348514683,1736598638278,-169.06516709,0.00019999,2]
[348514684,1736598638289,-418.80002936,0.00019999,2]
[348514685,1736598638299,-500.0,0.00019999,2]
[348514686,1736598638308,-500.0,0.00019999,2]
[348514687,1736598638317,-500.0,0.00019999,2]
[348514688,1736598638326,-500.0,0.00019999,2]
[348514689,1736598638335,-500.0,0.00019999,2]
[348514690,1736598638343,-238.62540104,0.00019999,2]
[348514691,1736598638355,-261.37459896,0.00019999,2]
[348514692,1736598638364,-238.4010692,0.00019999,2]
[348514693,1736598638379,-261.5989308,0.00019999,2]
[348514694,1736598638388,-500.0,0.00019999,2]
[348514695,1736598638397,-500.0,0.00019999,2]
[348514696,1736598638406,-500.0,0.00019999,2]
[348514697,1736598638415,-500.0,0.00019999,2]
[348514698,1736598638425,-500.0,0.00019999,2]
[348514699,1736598638434,-500.0,0.00019999,2]
[348514700,1736598638443,-500.0,0.00019999,2]
[348514702,1736598638452,-500.0,0.00019999,2]
[348514704,1736598638462,-500.0,0.00019999,2]
[348514706,1736598638471,-500.0,0.00019999,2]
[348514707,1736598638481,-500.0,0.00019999,2]
[348514708,1736598638491,-56.05377587,0.00019999,2]
[348514709,1736598638507,-443.94622413,0.00019999,2]
[348514710,1736598638519,-500.0,0.00019999,2]
[348514711,1736598638529,-500.0,0.00019999,2]
[348514712,1736598638539,-500.0,0.00019999,2]
[348514713,1736598638549,-500.0,0.00019999,2]
[348514714,1736598638558,-500.0,0.00019999,2]
[348514715,1736598638568,-500.0,0.00019999,2]
[348514716,1736598638577,-500.0,0.00019999,2]